[Event "Chinese League Division-A 2024"]
[Site "Fuling Chongqing"]
[Date "2024.07.04"]
[Round "8.30"]
[White "Wang, Qinxuanyi"]
[Black "Li, Xueyi"]
[Result "1/2-1/2"]
[ECO "D46"]
[WhiteElo "2149"]
[BlackElo "2209"]
[Annotator "RC"]
[PlyCount "70"]
[EventDate "2024.06.28"]
[EventType "team-tourn"]
[EventCountry "CHN"]
[SourceTitle "playchess.com"]
[Source "ChessBase"]
[SourceQuality "1"]
[TimeControl "40/5400+30:1800+30"]

1. d4 {[%emt 0:00:03]} d5 {[%emt 0:00:05]} 2. c4 {[%emt 0:00:05]} c6 {[%emt 0:00:04]} 3. Nf3 {[%emt 0:00:05]} Nf6 {[%emt 0:00:05]} 4. Nc3 {[%emt 0:00:06]} e6 {[%emt 0:00:27]} 5. e3 {[%emt 0:00:07]} Nbd7 {[%emt 0:00:13]} 6. Qc2 {[%emt 0:00:07]} Bd6 {[%emt 0:01:19]} 7. Bd3 {[%emt 0:00:13]} O-O {[%emt 0:00:47]} 8. O-O {[%emt 0:00:19]} e5 {[%emt 0:00:50]} 9. cxd5 {[%emt 0:00:09]} cxd5 {[%emt 0:00:04]} 10. e4 {[%emt 0:00:02]} exd4 {[%emt 0:01:36]} 11. Nxd5 {[%emt 0:00:04]} Nxd5 {[%emt 0:00:05]} 12. exd5 {[%emt 0:00:04]} h6 {[%emt 0:00:20]} 13. Nxd4 {[%emt 0:04:36]} Qh4 {[%emt 0:01:43]} 14. Nf3 {[%emt 0:00:02]} Qh5 {[%emt 0:00:07]} 15. Bh7+ {[%emt 0:00:15]} Kh8 {[%emt 0:00:07]} 16. Qf5 {[%emt 0:00:02]} Qxf5 {[%emt 0:00:10]} 17. Bxf5 {[%emt 0:00:05]} Nf6 {[%emt 0:00:29]} 18. Bxc8 {[%emt 0:00:04]} Rfxc8 {[%emt 0:00:59]} 19. Rd1 {[%emt 0:00:08]} Rd8 {[%emt 0:04:00]} 20. Be3 {[%emt 0:00:14]} Bf8 {[%emt 0:02:11]} 21. Rd3 {[%emt 0:06:03]} Rxd5 {[%emt 0:01:48]} 22. Rad1 {[%emt 0:00:05]} Rxd3 {[%emt 0:00:07]} 23. Rxd3 {[%emt 0:00:03]} a6 {[%emt 0:05:01]} 24. h3 {[%emt 0:03:38]} Be7 {[%emt 0:06:29]} 25. a4 {[%emt 0:03:05]} Rd8 {[%emt 0:01:42]} 26. Rb3 {[%emt 0:01:29]} Rd7 {[%emt 0:13:18]} 27. g3 {[%emt 0:07:44]} Kg8 {[%emt 0:02:05]} 28. Ne5 {[%emt 0:09:16]} Rc7 {[%emt 0:02:05]} 29. Bb6 {[%emt 0:02:28]} Rc1+ {[%emt 0:03:05]} 30. Kg2 {[%emt 0:02:25]} Nd5 {[%emt 0:04:10]} 31. Ba7 {[%emt 0:12:15]} Nb4 {[%emt 0:05:55]} 32. a5 {[%emt 0:04:51]} Rd1 {[%emt 0:08:02]} 33. Rc3 {[%emt 0:06:20]} Bf6 {[%emt 0:05:14]} 34. Rc4 {[%emt 0:05:38]} Bxe5 {[%emt 0:09:26]} 35. Rxb4 {[%emt 0:00:06]} Ra1 {[%emt 0:00:52]} 1/2-1/2

[Event "Chinese League Division-A 2024"]
[Site "Fuling Chongqing"]
[Date "2024.07.06"]
[Round "9.3"]
[White "Zhou, Weiqi"]
[Black "Xiu, Deshun"]
[Result "1-0"]
[ECO "A07"]
[WhiteElo "2599"]
[BlackElo "2514"]
[Annotator "RC"]
[PlyCount "129"]
[EventDate "2024.06.28"]
[EventType "team-tourn"]
[EventCountry "CHN"]
[SourceTitle "playchess.com"]
[Source "ChessBase"]
[SourceQuality "1"]
[TimeControl "40/5400+30:1800+30"]

1. Nf3 {[%emt 0:00:24]} d5 {[%emt 0:01:21]} 2. g3 {[%emt 0:01:10]} g6 {[%emt 0:01:37]} 3. Bg2 {[%emt 0:07:04]} Bg7 {[%emt 0:00:12]} 4. O-O {[%emt 0:01:27]} e5 {[%emt 0:03:04]} 5. d3 {[%emt 0:00:05]} Ne7 {[%emt 0:00:14]} 6. e4 {[%emt 0:00:22]} O-O {[%emt 0:01:11]} 7. b4 {[%emt 0:00:48]} d4 {[%emt 0:13:00]} 8. c3 {[%emt 0:01:39]} dxc3 {[%emt 0:02:06]} 9. Nxc3 {[%emt 0:00:27]} Bg4 {[%emt 0:00:14]} 10. b5 {[%emt 0:07:16]} a6 {[%emt 0:05:09]} 11. a4 {[%emt 0:05:35]} axb5 {[%emt 0:00:52]} 12. Nxb5 {[%emt 0:00:06]} c6 {[%emt 0:14:12]} 13. Nc3 {[%emt 0:07:07]} c5 {[%emt 0:01:23]} 14. Be3 {[%emt 0:15:06]} Nd7 {[%emt 0:16:29]} 15. Qb1 {[%emt 0:07:10]} b6 {[%emt 0:03:46]} 16. Nd2 {[%emt 0:00:36]} Nc6 {[%emt 0:03:34]} 17. Nd5 {[%emt 0:07:14]} Be6 {[%emt 0:01:05]} 18. Nc4 {[%emt 0:00:36]} Rb8 {[%emt 0:03:54]} 19. Qb5 {[%emt 0:04:39]} Na7 {[%emt 0:05:17]} 20. Qa6 {[%emt 0:01:54]} Nc6 {[%emt 0:00:17]} 21. Rab1 {[%emt 0:05:15]} Bxd5 {[%emt 0:02:52]} 22. exd5 {[%emt 0:00:02]} Nb4 {[%emt 0:00:10]} 23. Qb5 {[%emt 0:00:06]} f5 {[%emt 0:06:05]} 24. d6 {[%emt 0:00:41]} Nxd3 {[%emt 0:04:29]} 25. Bc6 {[%emt 0:03:38]} Nf6 {[%emt 0:01:33]} 26. Qb3 {[%emt 0:06:19]} e4 {[%emt 0:00:10]} 27. Ne5+ {[%emt 0:00:36]} Kh8 {[%emt 0:00:02]} 28. Nxd3 {[%emt 0:00:04]} exd3 {[%emt 0:01:17]} 29. Qxd3 {[%emt 0:00:26]} Ng4 {[%emt 0:00:50]} 30. d7 {[%emt 0:03:51]} Nxe3 {[%emt 0:01:44]} 31. fxe3 {[%emt 0:02:20]} Be5 {[%emt 0:00:54]} 32. Qd5 {[%emt 0:04:22]} Qe7 {[%emt 0:02:28]} 33. Rf3 {[%emt 0:01:41]} Bc7 {[%emt 0:00:41]} 34. Bb5 {[%emt 0:02:36]} Rf6 {[%emt 0:01:43]} 35. Qb3 {[%emt 0:00:25]} h5 {[%emt 0:01:19]} 36. Rd1 {[%emt 0:00:24]} Kh7 {[%emt 0:00:18]} 37. e4 {[%emt 0:02:48]} fxe4 {[%emt 0:02:35]} 38. Rxf6 {[%emt 0:00:37]} Qxf6 {[%emt 0:00:01]} 39. Qe3 {[%emt 0:01:38]} Qf3 {[%emt 0:01:06]} 40. Re1 {[%emt 0:00:00]} Rf8 {[%emt 0:00:00]} 41. Qxe4 {[%emt 0:02:58]} Qxe4 {[%emt 0:10:00]} 42. Rxe4 {[%emt 0:00:08]} Bd8 {[%emt 0:07:02]} 43. h4 {[%emt 0:04:43]} Kg7 {[%emt 0:04:06]} 44. Kg2 {[%emt 0:03:53]} Rf6 {[%emt 0:03:01]} 45. Re8 {[%emt 0:00:12]} Rf8 {[%emt 0:00:06]} 46. Bd3 {[%emt 0:03:49]} g5 {[%emt 0:01:04]} 47. hxg5 {[%emt 0:00:11]} Bxg5 {[%emt 0:00:04]} 48. Re5 {[%emt 0:00:33]} Bf6 {[%emt 0:00:58]} 49. Rxh5 {[%emt 0:01:11]} Kf7 {[%emt 0:00:04]} 50. Rd5 {[%emt 0:05:41]} Ke7 {[%emt 0:00:46]} 51. Bb5 {[%emt 0:01:19]} Rd8 {[%emt 0:01:46]} 52. Rf5 {[%emt 0:05:26]} Ke6 {[%emt 0:04:09]} 53. Rf1 {[%emt 0:00:33]} Be7 {[%emt 0:00:37]} 54. Rd1 {[%emt 0:01:07]} Bg5 {[%emt 0:01:21]} 55. Kf3 {[%emt 0:00:27]} Ke5 {[%emt 0:00:28]} 56. Re1+ {[%emt 0:01:33]} Kd6 {[%emt 0:00:11]} 57. Re8 {[%emt 0:01:10]} Kc7 {[%emt 0:00:33]} 58. Ke4 {[%emt 0:00:20]} Bf6 {[%emt 0:00:57]} 59. Kd5 {[%emt 0:00:42]} Bg5 {[%emt 0:00:04]} 60. g4 {[%emt 0:00:12]} Bh4 {[%emt 0:00:06]} 61. Ke6 {[%emt 0:00:55]} Bg5 {[%emt 0:00:06]} 62. Kf5 {[%emt 0:00:07]} Bc1 {[%emt 0:00:33]} 63. g5 {[%emt 0:00:20]} Bb2 {[%emt 0:01:27]} 64. Ke6 {[%emt 0:00:56]} c4 {[%emt 0:01:23]} 65. Rxd8 {[%emt 0:00:13]} 1-0

[Event "Chinese League Division-A 2024"]
[Site "Fuling Chongqing"]
[Date "2024.07.06"]
[Round "9.4"]
[White "Li, Ruofan"]
[Black "Song, Yuxin"]
[Result "1/2-1/2"]
[ECO "E15"]
[WhiteElo "2321"]
[BlackElo "2383"]
[Annotator "RC"]
[PlyCount "67"]
[EventDate "2024.06.28"]
[EventType "team-tourn"]
[EventCountry "CHN"]
[SourceTitle "playchess.com"]
[Source "ChessBase"]
[SourceQuality "1"]
[TimeControl "40/5400+30:1800+30"]

1. d4 {[%emt 0:00:03]} Nf6 {[%emt 0:00:01]} 2. c4 {[%emt 0:00:10]} e6 {[%emt 0:00:02]} 3. Nf3 {[%emt 0:00:18]} b6 {[%emt 0:00:02]} 4. g3 {[%emt 0:05:41]} Ba6 {[%emt 0:00:02]} 5. b3 {[%emt 0:03:08]} Bb4+ {[%emt 0:00:03]} 6. Bd2 {[%emt 0:00:33]} Be7 {[%emt 0:00:02]} 7. Bg2 {[%emt 0:00:05]} O-O {[%emt 0:00:22]} 8. O-O {[%emt 0:01:46]} d5 {[%emt 0:00:02]} 9. Ne5 {[%emt 0:05:00]} c5 {[%emt 0:00:02]} 10. cxd5 {[%emt 0:03:31]} exd5 {[%emt 0:03:48]} 11. dxc5 {[%emt 0:04:23]} bxc5 {[%emt 0:00:11]} 12. Nc3 {[%emt 0:00:06]} Bb7 {[%emt 0:01:02]} 13. Rc1 {[%emt 0:00:12]} Na6 {[%emt 0:03:13]} 14. Bg5 {[%emt 0:03:10]} Ne4 {[%emt 0:36:06]} 15. Nxe4 {[%emt 0:12:05]} Bxg5 {[%emt 0:00:31]} 16. Nxg5 {[%emt 0:02:06]} Qxg5 {[%emt 0:00:01]} 17. Bxd5 {[%emt 0:11:39]} Rad8 {[%emt 0:02:58]} 18. Bxf7+ {[%emt 0:00:05]} Kh8 {[%emt 0:08:31]} 19. f4 {[%emt 0:00:52]} Qf6 {[%emt 0:03:42]} 20. Qc2 {[%emt 0:04:11]} Rxf7 {[%emt 0:00:12]} 21. Nxf7+ {[%emt 0:00:04]} Qxf7 {[%emt 0:00:01]} 22. e4 {[%emt 0:06:05]} Re8 {[%emt 0:03:43]} 23. Rfe1 {[%emt 0:00:37]} Nb4 {[%emt 0:08:55]} 24. Qxc5 {[%emt 0:09:33]} Nd3 {[%emt 0:00:03]} 25. Qc7 {[%emt 0:00:06]} Qf6 {[%emt 0:01:21]} 26. Qxb7 {[%emt 0:20:29]} Qb2 {[%emt 0:00:01]} 27. Rf1 {[%emt 0:03:51]} Nxc1 {[%emt 0:01:00]} 28. Qxa7 {[%emt 0:00:53]} Nxa2 {[%emt 0:04:34]} 29. Qa4 {[%emt 0:00:48]} Rb8 {[%emt 0:00:19]} 30. e5 {[%emt 0:01:45]} Nc3 {[%emt 0:02:53]} 31. Qc4 {[%emt 0:07:36]} Qd2 {[%emt 0:06:37]} 32. Rf2 {[%emt 0:00:00]} Qe1+ {[%emt 0:01:58]} 33. Kg2 {[%emt 0:00:00]} Rd8 {[%emt 0:05:53]} 34. Rc2 {[%emt 0:00:00]} 1/2-1/2

[Event "Chinese League Division-A 2024"]
[Site "Fuling Chongqing"]
[Date "2024.07.06"]
[Round "9.5"]
[White "Li, Xueyi"]
[Black "Wang, Yu A."]
[Result "1/2-1/2"]
[ECO "E11"]
[WhiteElo "2209"]
[BlackElo "2234"]
[Annotator "RC"]
[PlyCount "60"]
[EventDate "2024.06.28"]
[EventType "team-tourn"]
[EventCountry "CHN"]
[SourceTitle "playchess.com"]
[Source "ChessBase"]
[SourceQuality "1"]
[TimeControl "40/5400+30:1800+30"]

1. d4 {[%emt 0:00:02]} Nf6 {[%emt 0:00:02]} 2. c4 {[%emt 0:00:07]} e6 {[%emt 0:00:04]} 3. Nf3 {[%emt 0:00:05]} Bb4+ {[%emt 0:01:29]} 4. Nbd2 {[%emt 0:00:06]} c5 {[%emt 0:09:23]} 5. a3 {[%emt 0:00:22]} Bxd2+ {[%emt 0:00:13]} 6. Bxd2 {[%emt 0:00:08]} cxd4 {[%emt 0:05:40]} 7. Nxd4 {[%emt 0:01:24]} Nc6 {[%emt 0:01:35]} 8. Nb5 {[%emt 0:13:07]} d5 {[%emt 0:05:38]} 9. e3 {[%emt 0:18:45]} a6 {[%emt 0:09:13]} 10. Nc3 {[%emt 0:02:22]} dxc4 {[%emt 0:01:00]} 11. Bxc4 {[%emt 0:00:20]} b5 {[%emt 0:00:25]} 12. Be2 {[%emt 0:00:06]} Bb7 {[%emt 0:00:50]} 13. O-O {[%emt 0:04:14]} O-O {[%emt 0:00:25]} 14. Bf3 {[%emt 0:01:08]} Qd3 {[%emt 0:14:23]} 15. Qe2 {[%emt 0:04:40]} Rad8 {[%emt 0:08:03]} 16. Rfd1 {[%emt 0:02:06]} Qc2 {[%emt 0:10:26]} 17. Be1 {[%emt 0:02:21]} Qxe2 {[%emt 0:01:01]} 18. Nxe2 {[%emt 0:00:17]} Rxd1 {[%emt 0:01:52]} 19. Rxd1 {[%emt 0:00:11]} Rd8 {[%emt 0:00:14]} 20. Rc1 {[%emt 0:01:50]} Nd5 {[%emt 0:02:27]} 21. Nc3 {[%emt 0:07:05]} Ne5 {[%emt 0:02:09]} 22. Nxd5 {[%emt 0:00:36]} Nxf3+ {[%emt 0:00:53]} 23. gxf3 {[%emt 0:00:05]} Bxd5 {[%emt 0:00:45]} 24. Ba5 {[%emt 0:00:17]} Re8 {[%emt 0:06:06]} 25. e4 {[%emt 0:00:17]} Bc4 {[%emt 0:00:32]} 26. Kg2 {[%emt 0:03:27]} e5 {[%emt 0:01:36]} 27. Rd1 {[%emt 0:00:18]} h5 {[%emt 0:02:17]} 28. Rd6 {[%emt 0:00:21]} Re6 {[%emt 0:00:25]} 29. Rxe6 {[%emt 0:00:05]} Bxe6 {[%emt 0:00:08]} 30. Bc3 {[%emt 0:00:03]} f6 {[%emt 0:00:05]} 1/2-1/2

[Event "Chinese League Division-A 2024"]
[Site "Fuling Chongqing"]
[Date "2024.07.06"]
[Round "9.6"]
[White "Lu, Shanglei"]
[Black "Xu, Yinglun"]
[Result "1/2-1/2"]
[ECO "C02"]
[WhiteElo "2606"]
[BlackElo "2526"]
[Annotator "RC"]
[PlyCount "60"]
[EventDate "2024.06.28"]
[EventType "team-tourn"]
[EventCountry "CHN"]
[SourceTitle "playchess.com"]
[Source "ChessBase"]
[SourceQuality "1"]
[TimeControl "40/5400+30:1800+30"]

1. e4 {[%emt 0:00:03]} e6 {[%emt 0:00:14]} 2. d4 {[%emt 0:01:27]} d5 {[%emt 0:00:07]} 3. e5 {[%emt 0:00:56]} c5 {[%emt 0:00:09]} 4. c3 {[%emt 0:00:20]} Nc6 {[%emt 0:00:14]} 5. Nf3 {[%emt 0:00:07]} Bd7 {[%emt 0:00:05]} 6. Be2 {[%emt 0:01:10]} Nge7 {[%emt 0:01:03]} 7. Na3 {[%emt 0:01:10]} cxd4 {[%emt 0:01:02]} 8. cxd4 {[%emt 0:00:03]} Nf5 {[%emt 0:00:06]} 9. Nc2 {[%emt 0:00:02]} Be7 {[%emt 0:00:11]} 10. Bd2 {[%emt 0:00:04]} a5 {[%emt 0:10:19]} 11. O-O {[%emt 0:03:10]} O-O {[%emt 0:00:53]} 12. g4 {[%emt 0:15:34]} Nh4 {[%emt 0:02:01]} 13. Nxh4 {[%emt 0:00:54]} Bxh4 {[%emt 0:00:05]} 14. f4 {[%emt 0:00:08]} f6 {[%emt 0:06:51]} 15. Bd3 {[%emt 0:05:33]} g5 {[%emt 0:11:41]} 16. Qe2 {[%emt 0:34:21]} gxf4 {[%emt 0:07:49]} 17. Bxf4 {[%emt 0:00:56]} fxe5 {[%emt 0:01:55]} 18. Bxe5 {[%emt 0:00:12]} Nxe5 {[%emt 0:05:10]} 19. Qxe5 {[%emt 0:00:28]} Qg5 {[%emt 0:00:12]} 20. Qxg5+ {[%emt 0:06:26]} Bxg5 {[%emt 0:00:09]} 21. Kg2 {[%emt 0:00:15]} h6 {[%emt 0:00:25]} 22. h3 {[%emt 0:00:02]} Rxf1 {[%emt 0:00:07]} 23. Rxf1 {[%emt 0:00:04]} Rf8 {[%emt 0:00:06]} 24. Rxf8+ {[%emt 0:00:03]} Kxf8 {[%emt 0:00:05]} 25. Ne1 {[%emt 0:00:15]} Bf4 {[%emt 0:00:35]} 26. Kf3 {[%emt 0:00:14]} Bc1 {[%emt 0:00:17]} 27. b3 {[%emt 0:00:04]} Bd2 {[%emt 0:00:06]} 28. Ke2 {[%emt 0:00:08]} Bf4 {[%emt 0:00:05]} 29. Kf3 {[%emt 0:00:04]} Bd2 {[%emt 0:00:03]} 30. Ke2 {[%emt 0:00:04]} Bf4 {[%emt 0:00:39]} 1/2-1/2

[Event "Chinese League Division-A 2024"]
[Site "Fuling Chongqing"]
[Date "2024.07.06"]
[Round "9.7"]
[White "Xie, Kaifan"]
[Black "Xu, Minghui"]
[Result "1/2-1/2"]
[ECO "D41"]
[WhiteElo "2376"]
[BlackElo "2388"]
[Annotator "RC"]
[PlyCount "60"]
[EventDate "2024.06.28"]
[EventType "team-tourn"]
[EventCountry "CHN"]
[SourceTitle "playchess.com"]
[Source "ChessBase"]
[SourceQuality "1"]
[TimeControl "40/5400+30:1800+30"]

1. d4 {[%emt 0:00:07]} d5 {[%emt 0:01:03]} 2. c4 {[%emt 0:00:31]} e6 {[%emt 0:00:09]} 3. Nf3 {[%emt 0:01:09]} Nf6 {[%emt 0:00:07]} 4. Nc3 {[%emt 0:00:06]} c5 {[%emt 0:01:02]} 5. cxd5 {[%emt 0:03:24]} cxd4 {[%emt 0:00:39]} 6. Qa4+ {[%emt 0:11:21]} Bd7 {[%emt 0:00:12]} 7. Qxd4 {[%emt 0:02:14]} exd5 {[%emt 0:00:02]} 8. Nxd5 {[%emt 0:02:33]} Qa5+ {[%emt 0:00:10]} 9. Nc3 {[%emt 0:00:11]} Nc6 {[%emt 0:00:07]} 10. Qd1 {[%emt 0:01:29]} Ne4 {[%emt 0:00:13]} 11. Bd2 {[%emt 0:01:44]} Nxd2 {[%emt 0:00:57]} 12. Nxd2 {[%emt 0:01:49]} Bb4 {[%emt 0:00:07]} 13. Rc1 {[%emt 0:03:28]} Bxc3 {[%emt 0:00:07]} 14. Rxc3 {[%emt 0:01:50]} Qxa2 {[%emt 0:00:08]} 15. Nc4 {[%emt 0:01:48]} Be6 {[%emt 0:00:06]} 16. e4 {[%emt 0:01:59]} Rd8 {[%emt 0:00:07]} 17. Nd6+ {[%emt 0:01:58]} Kf8 {[%emt 0:00:05]} 18. Qc1 {[%emt 0:02:55]} Qa4 {[%emt 0:00:07]} 19. Nxb7 {[%emt 0:00:46]} Qxe4+ {[%emt 0:00:06]} 20. Qe3 {[%emt 0:00:05]} Qxe3+ {[%emt 0:00:04]} 21. fxe3 {[%emt 0:00:07]} Rb8 {[%emt 0:00:08]} 22. Nc5 {[%emt 0:03:03]} Nd8 {[%emt 0:00:02]} 23. Bd3 {[%emt 0:05:34]} g6 {[%emt 0:02:47]} 24. O-O {[%emt 0:06:23]} Kg7 {[%emt 0:00:08]} 25. Ra3 {[%emt 0:03:56]} Rxb2 {[%emt 0:01:32]} 26. Nxe6+ {[%emt 0:01:09]} Nxe6 {[%emt 0:00:15]} 27. Rxa7 {[%emt 0:00:07]} Rf8 {[%emt 0:00:03]} 28. Bc4 {[%emt 0:02:19]} Rb6 {[%emt 0:00:07]} 29. Re7 {[%emt 0:00:47]} Nd8 {[%emt 0:02:46]} 30. Rd7 {[%emt 0:01:46]} Rb7 {[%emt 0:05:55]} 1/2-1/2

[Event "Chinese League Division-A 2024"]
[Site "Fuling Chongqing"]
[Date "2024.07.06"]
[Round "9.9"]
[White "Wang, Qinxuanyi"]
[Black "Zhu, Jiner"]
[Result "0-1"]
[ECO "D39"]
[WhiteElo "2149"]
[BlackElo "2476"]
[Annotator "RC"]
[PlyCount "58"]
[EventDate "2024.06.28"]
[EventType "team-tourn"]
[EventCountry "CHN"]
[SourceTitle "playchess.com"]
[Source "ChessBase"]
[SourceQuality "1"]
[TimeControl "40/5400+30:1800+30"]

1. d4 {[%emt 0:00:04]} Nf6 {[%emt 0:00:07]} 2. c4 {[%emt 0:00:07]} e6 {[%emt 0:00:05]} 3. Nf3 {[%emt 0:00:06]} d5 {[%emt 0:00:08]} 4. Nc3 {[%emt 0:00:07]} Bb4 {[%emt 0:00:40]} 5. Bg5 {[%emt 0:00:27]} dxc4 {[%emt 0:00:08]} 6. e4 {[%emt 0:00:45]} b5 {[%emt 0:00:16]} 7. e5 {[%emt 0:01:34]} h6 {[%emt 0:00:08]} 8. Bh4 {[%emt 0:02:16]} g5 {[%emt 0:00:08]} 9. Nxg5 {[%emt 0:00:05]} hxg5 {[%emt 0:00:04]} 10. Bxg5 {[%emt 0:00:05]} Nbd7 {[%emt 0:00:04]} 11. exf6 {[%emt 0:05:10]} Bb7 {[%emt 0:00:09]} 12. Qc2 {[%emt 0:02:48]} Nb6 {[%emt 0:03:27]} 13. O-O-O {[%emt 0:04:32]} Qd7 {[%emt 0:12:50]} 14. h4 {[%emt 0:03:40]} a5 {[%emt 0:01:23]} 15. Rh3 {[%emt 0:02:45]} Bd6 {[%emt 0:08:05]} 16. g4 {[%emt 0:10:30]} b4 {[%emt 0:06:39]} 17. Ne4 {[%emt 0:01:41]} Bd5 {[%emt 0:00:08]} 18. Bg2 {[%emt 0:03:38]} Qc6 {[%emt 0:16:25]} 19. Re3 {[%emt 0:06:14]} O-O-O {[%emt 0:02:24]} 20. f4 {[%emt 0:09:45]} a4 {[%emt 0:03:18]} 21. f5 {[%emt 0:02:57]} b3 {[%emt 0:00:21]} 22. axb3 {[%emt 0:09:22]} axb3 {[%emt 0:00:08]} 23. Qb1 {[%emt 0:00:02]} exf5 {[%emt 0:00:26]} 24. Nxd6+ {[%emt 0:00:58]} Rxd6 {[%emt 0:00:09]} 25. Qxf5+ {[%emt 0:01:01]} Kb7 {[%emt 0:00:07]} 26. Bf1 {[%emt 0:05:39]} Ra8 {[%emt 0:01:16]} 27. h5 {[%emt 0:11:53]} Be6 {[%emt 0:02:43]} 28. Qe4 {[%emt 0:02:39]} Nd5 {[%emt 0:00:28]} 29. Bg2 {[%emt 0:02:10]} Ra1+ {[%emt 0:00:18]} 0-1

[Event "Chinese League Division-A 2024"]
[Site "Fuling Chongqing"]
[Date "2024.07.06"]
[Round "9.12"]
[White "Xiao, Tong"]
[Black "Liu, Yan"]
[Result "1/2-1/2"]
[ECO "D60"]
[WhiteElo "2518"]
[BlackElo "2573"]
[Annotator "RC"]
[PlyCount "61"]
[EventDate "2024.06.28"]
[EventType "team-tourn"]
[EventCountry "CHN"]
[SourceTitle "playchess.com"]
[Source "ChessBase"]
[SourceQuality "1"]
[TimeControl "40/5400+30:1800+30"]

1. d4 {[%emt 0:00:02]} d5 {[%emt 0:01:53]} 2. c4 {[%emt 0:00:51]} c6 {[%emt 0:00:51]} 3. Nc3 {[%emt 0:01:37]} Nf6 {[%emt 0:01:43]} 4. Nf3 {[%emt 0:00:13]} e6 {[%emt 0:02:25]} 5. Bg5 {[%emt 0:01:59]} h6 {[%emt 0:02:13]} 6. Bh4 {[%emt 0:01:25]} Be7 {[%emt 0:01:35]} 7. e3 {[%emt 0:03:27]} O-O {[%emt 0:02:25]} 8. Bd3 {[%emt 0:01:34]} Nbd7 {[%emt 0:08:17]} 9. O-O {[%emt 0:04:13]} dxc4 {[%emt 0:04:28]} 10. Bxc4 {[%emt 0:00:06]} b5 {[%emt 0:00:17]} 11. Bd3 {[%emt 0:02:08]} Bb7 {[%emt 0:01:43]} 12. a3 {[%emt 0:06:14]} a5 {[%emt 0:05:03]} 13. Qc2 {[%emt 0:04:28]} b4 {[%emt 0:02:31]} 14. axb4 {[%emt 0:01:31]} axb4 {[%emt 0:00:08]} 15. Na4 {[%emt 0:00:20]} c5 {[%emt 0:03:29]} 16. Bxf6 {[%emt 0:02:50]} Nxf6 {[%emt 0:01:22]} 17. Nxc5 {[%emt 0:01:06]} Bxf3 {[%emt 0:00:22]} 18. gxf3 {[%emt 0:00:07]} Rc8 {[%emt 0:00:40]} 19. f4 {[%emt 0:01:33]} Nd7 {[%emt 0:01:30]} 20. Rfd1 {[%emt 0:01:58]} Nxc5 {[%emt 0:01:33]} 21. dxc5 {[%emt 0:00:27]} Qc7 {[%emt 0:00:11]} 22. Rac1 {[%emt 0:01:23]} Qxc5 {[%emt 0:00:28]} 23. Qxc5 {[%emt 0:00:55]} Rxc5 {[%emt 0:00:07]} 24. Rxc5 {[%emt 0:00:23]} Bxc5 {[%emt 0:00:08]} 25. f5 {[%emt 0:00:35]} exf5 {[%emt 0:00:13]} 26. Bxf5 {[%emt 0:00:09]} g6 {[%emt 0:00:27]} 27. Be4 {[%emt 0:00:18]} Re8 {[%emt 0:00:24]} 28. Bd5 {[%emt 0:00:12]} Kg7 {[%emt 0:00:19]} 29. Kg2 {[%emt 0:01:07]} Rd8 {[%emt 0:00:13]} 30. Bb3 {[%emt 0:00:19]} Rxd1 {[%emt 0:00:06]} 31. Bxd1 {[%emt 0:00:39]} 1/2-1/2

[Event "Chinese League Division-A 2024"]
[Site "Fuling Chongqing"]
[Date "2024.07.06"]
[Round "9.13"]
[White "Wang, Chen"]
[Black "Liu, Qingnan"]
[Result "1/2-1/2"]
[ECO "B51"]
[WhiteElo "2490"]
[BlackElo "2540"]
[Annotator "RC"]
[PlyCount "71"]
[EventDate "2024.06.28"]
[EventType "team-tourn"]
[EventCountry "CHN"]
[SourceTitle "playchess.com"]
[Source "ChessBase"]
[SourceQuality "1"]
[TimeControl "40/5400+30:1800+30"]

1. e4 {[%emt 0:00:03]} c5 {[%emt 0:00:05]} 2. Nf3 {[%emt 0:00:04]} d6 {[%emt 0:00:04]} 3. Bb5+ {[%emt 0:00:03]} Nd7 {[%emt 0:00:09]} 4. Ba4 {[%emt 0:00:04]} Ngf6 {[%emt 0:00:05]} 5. O-O {[%emt 0:00:58]} e6 {[%emt 0:00:04]} 6. Re1 {[%emt 0:01:41]} a6 {[%emt 0:00:11]} 7. c4 {[%emt 0:00:07]} Be7 {[%emt 0:00:37]} 8. Nc3 {[%emt 0:01:29]} O-O {[%emt 0:00:07]} 9. d4 {[%emt 0:00:09]} cxd4 {[%emt 0:00:07]} 10. Nxd4 {[%emt 0:00:04]} Ne5 {[%emt 0:00:06]} 11. Qe2 {[%emt 0:01:51]} Qc7 {[%emt 0:00:05]} 12. Bb3 {[%emt 0:00:02]} Re8 {[%emt 0:00:09]} 13. Kh1 {[%emt 0:13:06]} b6 {[%emt 0:08:47]} 14. f4 {[%emt 0:05:00]} Ng6 {[%emt 0:00:28]} 15. Ba4 {[%emt 0:00:33]} Bd7 {[%emt 0:04:56]} 16. f5 {[%emt 0:20:56]} Ne5 {[%emt 0:11:17]} 17. Bxd7 {[%emt 0:02:57]} Qxd7 {[%emt 0:00:04]} 18. Bf4 {[%emt 0:01:04]} Rac8 {[%emt 0:01:10]} 19. c5 {[%emt 0:16:26]} dxc5 {[%emt 0:13:24]} 20. Bxe5 {[%emt 0:07:47]} cxd4 {[%emt 0:00:13]} 21. fxe6 {[%emt 0:01:01]} fxe6 {[%emt 0:00:19]} 22. Rad1 {[%emt 0:00:35]} Bc5 {[%emt 0:00:28]} 23. Bxd4 {[%emt 0:10:16]} Bxd4 {[%emt 0:00:30]} 24. e5 {[%emt 0:00:02]} Nd5 {[%emt 0:15:21]} 25. Rxd4 {[%emt 0:00:02]} Nxc3 {[%emt 0:00:06]} 26. bxc3 {[%emt 0:00:05]} Qb7 {[%emt 0:00:13]} 27. c4 {[%emt 0:00:05]} Rc5 {[%emt 0:00:22]} 28. Rd6 {[%emt 0:01:23]} Qc7 {[%emt 0:09:19]} 29. h3 {[%emt 0:01:11]} Rxc4 {[%emt 0:03:27]} 30. Rxb6 {[%emt 0:00:02]} Qxb6 {[%emt 0:04:00]} 31. Qxc4 {[%emt 0:00:01]} Rd8 {[%emt 0:00:57]} 32. Kh2 {[%emt 0:02:18]} h6 {[%emt 0:00:21]} 33. Rf1 {[%emt 0:00:57]} Rd4 {[%emt 0:07:16]} 34. Qc8+ {[%emt 0:00:06]} Rd8 {[%emt 0:00:10]} 35. Qc4 {[%emt 0:00:02]} Rd4 {[%emt 0:16:14]} 36. Qc8+ {[%emt 0:00:19]} 1/2-1/2